{"text_format":"3","workbook":"xlsx","n_sheets":3,"sheets":["Jadual Harian","Penjadual Peristiwa","Sela Masa"],"not_rendered":{"images":3,"defined_names":10},"read":"whole","date_system":"1900"}

{"sheet":"Jadual Harian","index":0,"n_rows":36,"n_cols":14,"rows_kept":36,"merged":[[2,1,6,2],[2,7,2,9],[2,11,2,12],[3,11,5,11],[3,12,5,12],[4,7,5,7],[6,11,8,11],[6,12,8,12],[7,1,9,2],[9,11,11,11],[9,12,11,12],[10,7,11,7],[12,1,12,2],[12,11,14,11],[12,12,14,12],[15,11,17,11],[15,12,17,12],[16,7,17,7],[18,11,20,11],[18,12,20,12],[21,1,21,2],[21,11,23,11],[21,12,23,12],[22,7,23,7],[24,11,26,11],[24,12,26,12],[27,7,28,7],[27,11,29,11],[27,12,29,12],[28,1,28,2],[29,1,29,2],[30,11,32,11],[30,12,32,12],[32,7,33,7],[33,11,35,11],[33,12,35,12]]}
[]
[]
[null,{"$f":"DAY(DateVal)","v":10},{"$nulls":3},{"$f":"IFERROR(UPPER(TEXT(DATE(ReportYear,MonthNumber,ReportDay),\"D MMMM YYYY\")),\"Invalid Date\")","v":"10 APRIL 2016"},null,"PANDANGAN SEKILAS MINGGU",{"$nulls":3},"NOTA / SENARAI UNTUK DILAKUKAN",null," "]
[{"$nulls":4},{"$f":"'Sela Masa'!B3","v":"6.00 PG"},{"$f":"IFERROR(INDEX(Input[],MATCH(DATEVALUE(DateVal)&DailySchedule[[#This Row],[Time]],LookUpDateAndTime,0),3),\"-\")","v":"Bangun"},null,{"$f":"TEXT(DATEVALUE(DateVal)+1,\"[$-43E]dddd\")","v":"Isnin"},{"$f":"IFERROR(INDEX(Input[],MATCH($H$7&\"|\"&ROW(A1),Input[UNIQUE VALUE (CALCULATED)],0),2),\"\")","v":""},{"$f":"IFERROR(INDEX(Input[],MATCH($H$7&\"|\"&ROW(A1),Input[UNIQUE VALUE (CALCULATED)],0),3),\"\")","v":""},null,"c","Ambil cucian kering"]
[{"$nulls":4},{"$f":"'Sela Masa'!B4","v":"6.30 PG"},{"$f":"IFERROR(INDEX(Input[],MATCH(DATEVALUE(DateVal)&DailySchedule[[#This Row],[Time]],LookUpDateAndTime,0),3),\"-\")","v":"Mandi"},null,{"$f":"TEXT(DATEVALUE(DateVal)+1,\"[$-43E]d\")","v":"11"},{"$f":"IFERROR(INDEX(Input[],MATCH($H$7&\"|\"&ROW(A2),Input[UNIQUE VALUE (CALCULATED)],0),2),\"\")","v":"6.00 PG"},{"$f":"IFERROR(INDEX(Input[],MATCH($H$7&\"|\"&ROW(A2),Input[UNIQUE VALUE (CALCULATED)],0),3),\"\")","v":"Sarapan pagi"}]
[{"$nulls":4},{"$f":"'Sela Masa'!B5","v":"7.00 PG"},{"$f":"IFERROR(INDEX(Input[],MATCH(DATEVALUE(DateVal)&DailySchedule[[#This Row],[Time]],LookUpDateAndTime,0),3),\"-\")","v":"Bertolak ke tempat kerja"},null,null,{"$f":"IFERROR(INDEX(Input[],MATCH($H$7&\"|\"&ROW(A3),Input[UNIQUE VALUE (CALCULATED)],0),2),\"\")","v":""},{"$f":"IFERROR(INDEX(Input[],MATCH($H$7&\"|\"&ROW(A3),Input[UNIQUE VALUE (CALCULATED)],0),3),\"\")","v":""}]
[{"$nulls":4},{"$f":"'Sela Masa'!B6","v":"7.30 PG"},{"$f":"IFERROR(INDEX(Input[],MATCH(DATEVALUE(DateVal)&DailySchedule[[#This Row],[Time]],LookUpDateAndTime,0),3),\"-\")","v":"-"},null,{"$f":"DateVal+1","v":"2016-04-11"},{"$f":"IFERROR(INDEX(Input[],MATCH($H$7&\"|\"&ROW(A4),Input[UNIQUE VALUE (CALCULATED)],0),2),\"\")","v":""},{"$f":"IFERROR(INDEX(Input[],MATCH($H$7&\"|\"&ROW(A4),Input[UNIQUE VALUE (CALCULATED)],0),3),\"\")","v":""},null,"c","Panggil syarikat kabel"]
[null,{"$f":"TEXT(DateVal,\"[$-43E]dddd\")","v":"Ahad"},null,null,{"$f":"'Sela Masa'!B7","v":"8.00 PG"},{"$f":"IFERROR(INDEX(Input[],MATCH(DATEVALUE(DateVal)&DailySchedule[[#This Row],[Time]],LookUpDateAndTime,0),3),\"-\")","v":"Mulakan syif"},null,null,{"$f":"IFERROR(INDEX(Input[],MATCH($H$7&\"|\"&ROW(A5),Input[UNIQUE VALUE (CALCULATED)],0),2),\"\")","v":""},{"$f":"IFERROR(INDEX(Input[],MATCH($H$7&\"|\"&ROW(A5),Input[UNIQUE VALUE (CALCULATED)],0),3),\"\")","v":""}]
[{"$nulls":4},{"$f":"'Sela Masa'!B8","v":"8.30 PG"},{"$f":"IFERROR(INDEX(Input[],MATCH(DATEVALUE(DateVal)&DailySchedule[[#This Row],[Time]],LookUpDateAndTime,0),3),\"-\")","v":"-"},null,null,{"$f":"IFERROR(INDEX(Input[],MATCH($H$7&\"|\"&ROW(A6),Input[UNIQUE VALUE (CALCULATED)],0),2),\"\")","v":""},{"$f":"IFERROR(INDEX(Input[],MATCH($H$7&\"|\"&ROW(A6),Input[UNIQUE VALUE (CALCULATED)],0),3),\"\")","v":""}]
[{"$nulls":4},{"$f":"'Sela Masa'!B9","v":"9.00 PG"},{"$f":"IFERROR(INDEX(Input[],MATCH(DATEVALUE(DateVal)&DailySchedule[[#This Row],[Time]],LookUpDateAndTime,0),3),\"-\")","v":"-"},null,{"$f":"TEXT(DATEVALUE(DateVal)+2,\"[$-43E]dddd\")","v":"Selasa"},{"$f":"IFERROR(INDEX(Input[],MATCH($H$13&\"|\"&ROW(A1),Input[UNIQUE VALUE (CALCULATED)],0),2),\"\")","v":""},{"$f":"IFERROR(INDEX(Input[],MATCH($H$13&\"|\"&ROW(A1),Input[UNIQUE VALUE (CALCULATED)],0),3),\"\")","v":""},null,"c"]
[{"$nulls":4},{"$f":"'Sela Masa'!B10","v":"9.30 PG"},{"$f":"IFERROR(INDEX(Input[],MATCH(DATEVALUE(DateVal)&DailySchedule[[#This Row],[Time]],LookUpDateAndTime,0),3),\"-\")","v":"-"},null,{"$f":"TEXT(DATEVALUE(DateVal)+2,\"[$-43E]d\")","v":"12"},{"$f":"IFERROR(INDEX(Input[],MATCH($H$13&\"|\"&ROW(A2),Input[UNIQUE VALUE (CALCULATED)],0),2),\"\")","v":""},{"$f":"IFERROR(INDEX(Input[],MATCH($H$13&\"|\"&ROW(A2),Input[UNIQUE VALUE (CALCULATED)],0),3),\"\")","v":""}]
[{"$nulls":4},{"$f":"'Sela Masa'!B11","v":"10.00 PG"},{"$f":"IFERROR(INDEX(Input[],MATCH(DATEVALUE(DateVal)&DailySchedule[[#This Row],[Time]],LookUpDateAndTime,0),3),\"-\")","v":"Rehat"},null,null,{"$f":"IFERROR(INDEX(Input[],MATCH($H$13&\"|\"&ROW(A3),Input[UNIQUE VALUE (CALCULATED)],0),2),\"\")","v":""},{"$f":"IFERROR(INDEX(Input[],MATCH($H$13&\"|\"&ROW(A3),Input[UNIQUE VALUE (CALCULATED)],0),3),\"\")","v":""}]
[null,"LIHAT JADUAL",null,null,{"$f":"'Sela Masa'!B12","v":"10.30 PG"},{"$f":"IFERROR(INDEX(Input[],MATCH(DATEVALUE(DateVal)&DailySchedule[[#This Row],[Time]],LookUpDateAndTime,0),3),\"-\")","v":"-"},null,{"$f":"DateVal+2","v":"2016-04-12"},{"$f":"IFERROR(INDEX(Input[],MATCH($H$13&\"|\"&ROW(A4),Input[UNIQUE VALUE (CALCULATED)],0),2),\"\")","v":""},{"$f":"IFERROR(INDEX(Input[],MATCH($H$13&\"|\"&ROW(A4),Input[UNIQUE VALUE (CALCULATED)],0),3),\"\")","v":""},null,"c"]
[{"$nulls":4},{"$f":"'Sela Masa'!B13","v":"11.00 PG"},{"$f":"IFERROR(INDEX(Input[],MATCH(DATEVALUE(DateVal)&DailySchedule[[#This Row],[Time]],LookUpDateAndTime,0),3),\"-\")","v":"-"},null,null,{"$f":"IFERROR(INDEX(Input[],MATCH($H$13&\"|\"&ROW(A5),Input[UNIQUE VALUE (CALCULATED)],0),2),\"\")","v":""},{"$f":"IFERROR(INDEX(Input[],MATCH($H$13&\"|\"&ROW(A5),Input[UNIQUE VALUE (CALCULATED)],0),3),\"\")","v":""}]
[null,2016,"Tahun",null,{"$f":"'Sela Masa'!B14","v":"11.30 PG"},{"$f":"IFERROR(INDEX(Input[],MATCH(DATEVALUE(DateVal)&DailySchedule[[#This Row],[Time]],LookUpDateAndTime,0),3),\"-\")","v":"-"},null,null,{"$f":"IFERROR(INDEX(Input[],MATCH($H$13&\"|\"&ROW(A6),Input[UNIQUE VALUE (CALCULATED)],0),2),\"\")","v":""},{"$f":"IFERROR(INDEX(Input[],MATCH($H$13&\"|\"&ROW(A6),Input[UNIQUE VALUE (CALCULATED)],0),3),\"\")","v":""}]
[{"$nulls":4},{"$f":"'Sela Masa'!B15","v":"12.00 TGH"},{"$f":"IFERROR(INDEX(Input[],MATCH(DATEVALUE(DateVal)&DailySchedule[[#This Row],[Time]],LookUpDateAndTime,0),3),\"-\")","v":"Makan Tengah Hari"},null,{"$f":"TEXT(DATEVALUE(DateVal)+3,\"[$-43E]dddd\")","v":"Rabu"},{"$f":"IFERROR(INDEX(Input[],MATCH($H$19&\"|\"&ROW(A1),Input[UNIQUE VALUE (CALCULATED)],0),2),\"\")","v":""},{"$f":"IFERROR(INDEX(Input[],MATCH($H$19&\"|\"&ROW(A1),Input[UNIQUE VALUE (CALCULATED)],0),3),\"\")","v":""},null,"c"]
[null,{"$f":"CHOOSE(MonthNumber,\"Januari\",\"Februari\",\"Mac\",\"April\",\"Mei\",\"Jun\",\"Julai\",\"Ogos\",\"September\",\"Oktober\",\"November\",\"Disember\")","v":"April"},"Bulan",null,{"$f":"'Sela Masa'!B16","v":"12.30 TGH"},{"$f":"IFERROR(INDEX(Input[],MATCH(DATEVALUE(DateVal)&DailySchedule[[#This Row],[Time]],LookUpDateAndTime,0),3),\"-\")","v":"-"},null,{"$f":"TEXT(DATEVALUE(DateVal)+3,\"[$-43E]d\")","v":"13"},{"$f":"IFERROR(INDEX(Input[],MATCH($H$19&\"|\"&ROW(A2),Input[UNIQUE VALUE (CALCULATED)],0),2),\"\")","v":""},{"$f":"IFERROR(INDEX(Input[],MATCH($H$19&\"|\"&ROW(A2),Input[UNIQUE VALUE (CALCULATED)],0),3),\"\")","v":""}]
[null,4,null,null,{"$f":"'Sela Masa'!B17","v":"1.00 PTG"},{"$f":"IFERROR(INDEX(Input[],MATCH(DATEVALUE(DateVal)&DailySchedule[[#This Row],[Time]],LookUpDateAndTime,0),3),\"-\")","v":"Kembali bekerja"},null,null,{"$f":"IFERROR(INDEX(Input[],MATCH($H$19&\"|\"&ROW(A3),Input[UNIQUE VALUE (CALCULATED)],0),2),\"\")","v":""},{"$f":"IFERROR(INDEX(Input[],MATCH($H$19&\"|\"&ROW(A3),Input[UNIQUE VALUE (CALCULATED)],0),3),\"\")","v":""}]
[null,10,"Hari",null,{"$f":"'Sela Masa'!B18","v":"1.30 PTG"},{"$f":"IFERROR(INDEX(Input[],MATCH(DATEVALUE(DateVal)&DailySchedule[[#This Row],[Time]],LookUpDateAndTime,0),3),\"-\")","v":"Panggil korporat"},null,{"$f":"DateVal+3","v":"2016-04-13"},{"$f":"IFERROR(INDEX(Input[],MATCH($H$19&\"|\"&ROW(A4),Input[UNIQUE VALUE (CALCULATED)],0),2),\"\")","v":""},{"$f":"IFERROR(INDEX(Input[],MATCH($H$19&\"|\"&ROW(A4),Input[UNIQUE VALUE (CALCULATED)],0),3),\"\")","v":""},null,"c"]
[{"$nulls":4},{"$f":"'Sela Masa'!B19","v":"2.00 PTG"},{"$f":"IFERROR(INDEX(Input[],MATCH(DATEVALUE(DateVal)&DailySchedule[[#This Row],[Time]],LookUpDateAndTime,0),3),\"-\")","v":"-"},null,null,{"$f":"IFERROR(INDEX(Input[],MATCH($H$19&\"|\"&ROW(A5),Input[UNIQUE VALUE (CALCULATED)],0),2),\"\")","v":""},{"$f":"IFERROR(INDEX(Input[],MATCH($H$19&\"|\"&ROW(A5),Input[UNIQUE VALUE (CALCULATED)],0),3),\"\")","v":""}]
[{"$nulls":4},{"$f":"'Sela Masa'!B20","v":"2.30 PTG"},{"$f":"IFERROR(INDEX(Input[],MATCH(DATEVALUE(DateVal)&DailySchedule[[#This Row],[Time]],LookUpDateAndTime,0),3),\"-\")","v":"-"},null,null,{"$f":"IFERROR(INDEX(Input[],MATCH($H$19&\"|\"&ROW(A6),Input[UNIQUE VALUE (CALCULATED)],0),2),\"\")","v":""},{"$f":"IFERROR(INDEX(Input[],MATCH($H$19&\"|\"&ROW(A6),Input[UNIQUE VALUE (CALCULATED)],0),3),\"\")","v":""}]
[null,"EDIT JADUAL",null,null,{"$f":"'Sela Masa'!B21","v":"3.00 PTG"},{"$f":"IFERROR(INDEX(Input[],MATCH(DATEVALUE(DateVal)&DailySchedule[[#This Row],[Time]],LookUpDateAndTime,0),3),\"-\")","v":"Rehat"},null,{"$f":"TEXT(DATEVALUE(DateVal)+4,\"[$-43E]dddd\")","v":"Khamis"},{"$f":"IFERROR(INDEX(Input[],MATCH($H$25&\"|\"&ROW(A1),Input[UNIQUE VALUE (CALCULATED)],0),2),\"\")","v":""},{"$f":"IFERROR(INDEX(Input[],MATCH($H$25&\"|\"&ROW(A1),Input[UNIQUE VALUE (CALCULATED)],0),3),\"\")","v":""},null,"c"]
[{"$nulls":4},{"$f":"'Sela Masa'!B22","v":"3.30 PTG"},{"$f":"IFERROR(INDEX(Input[],MATCH(DATEVALUE(DateVal)&DailySchedule[[#This Row],[Time]],LookUpDateAndTime,0),3),\"-\")","v":"-"},null,{"$f":"TEXT(DATEVALUE(DateVal)+4,\"[$-43E]d\")","v":"14"},{"$f":"IFERROR(INDEX(Input[],MATCH($H$25&\"|\"&ROW(A2),Input[UNIQUE VALUE (CALCULATED)],0),2),\"\")","v":""},{"$f":"IFERROR(INDEX(Input[],MATCH($H$25&\"|\"&ROW(A2),Input[UNIQUE VALUE (CALCULATED)],0),3),\"\")","v":""}]
[{"$nulls":4},{"$f":"'Sela Masa'!B23","v":"4.00 PTG"},{"$f":"IFERROR(INDEX(Input[],MATCH(DATEVALUE(DateVal)&DailySchedule[[#This Row],[Time]],LookUpDateAndTime,0),3),\"-\")","v":"-"},null,null,{"$f":"IFERROR(INDEX(Input[],MATCH($H$25&\"|\"&ROW(A3),Input[UNIQUE VALUE (CALCULATED)],0),2),\"\")","v":""},{"$f":"IFERROR(INDEX(Input[],MATCH($H$25&\"|\"&ROW(A3),Input[UNIQUE VALUE (CALCULATED)],0),3),\"\")","v":""}]
[{"$nulls":4},{"$f":"'Sela Masa'!B24","v":"4.30 PTG"},{"$f":"IFERROR(INDEX(Input[],MATCH(DATEVALUE(DateVal)&DailySchedule[[#This Row],[Time]],LookUpDateAndTime,0),3),\"-\")","v":"-"},null,{"$f":"DateVal+4","v":"2016-04-14"},{"$f":"IFERROR(INDEX(Input[],MATCH($H$25&\"|\"&ROW(A4),Input[UNIQUE VALUE (CALCULATED)],0),2),\"\")","v":""},{"$f":"IFERROR(INDEX(Input[],MATCH($H$25&\"|\"&ROW(A4),Input[UNIQUE VALUE (CALCULATED)],0),3),\"\")","v":""},null,"c"]
[{"$nulls":4},{"$f":"'Sela Masa'!B25","v":"5.00 PTG"},{"$f":"IFERROR(INDEX(Input[],MATCH(DATEVALUE(DateVal)&DailySchedule[[#This Row],[Time]],LookUpDateAndTime,0),3),\"-\")","v":"Rumah"},null,null,{"$f":"IFERROR(INDEX(Input[],MATCH($H$25&\"|\"&ROW(A5),Input[UNIQUE VALUE (CALCULATED)],0),2),\"\")","v":""},{"$f":"IFERROR(INDEX(Input[],MATCH($H$25&\"|\"&ROW(A5),Input[UNIQUE VALUE (CALCULATED)],0),3),\"\")","v":""}]
[{"$nulls":4},{"$f":"'Sela Masa'!B26","v":"5.30 PTG"},{"$f":"IFERROR(INDEX(Input[],MATCH(DATEVALUE(DateVal)&DailySchedule[[#This Row],[Time]],LookUpDateAndTime,0),3),\"-\")","v":"-"},null,{"$f":"TEXT(DATEVALUE(DateVal)+5,\"[$-43E]dddd\")","v":"Jumaat"},{"$f":"IFERROR(INDEX(Input[],MATCH($H$30&\"|\"&ROW(A1),Input[UNIQUE VALUE (CALCULATED)],0),2),\"\")","v":""},{"$f":"IFERROR(INDEX(Input[],MATCH($H$30&\"|\"&ROW(A1),Input[UNIQUE VALUE (CALCULATED)],0),3),\"\")","v":""}]
[{"$nulls":4},{"$f":"'Sela Masa'!B27","v":"6.00 PTG"},{"$f":"IFERROR(INDEX(Input[],MATCH(DATEVALUE(DateVal)&DailySchedule[[#This Row],[Time]],LookUpDateAndTime,0),3),\"-\")","v":"Latihan bola sepak"},null,{"$f":"TEXT(DATEVALUE(DateVal)+5,\"[$-43E]d\")","v":"15"},{"$f":"IFERROR(INDEX(Input[],MATCH($H$30&\"|\"&ROW(A2),Input[UNIQUE VALUE (CALCULATED)],0),2),\"\")","v":""},{"$f":"IFERROR(INDEX(Input[],MATCH($H$30&\"|\"&ROW(A2),Input[UNIQUE VALUE (CALCULATED)],0),3),\"\")","v":""},null,"c"]
[null,"SERLAH DALAM JADUAL:",null,null,{"$f":"'Sela Masa'!B28","v":"6.30 PTG"},{"$f":"IFERROR(INDEX(Input[],MATCH(DATEVALUE(DateVal)&DailySchedule[[#This Row],[Time]],LookUpDateAndTime,0),3),\"-\")","v":"-"},null,null,{"$f":"IFERROR(INDEX(Input[],MATCH($H$30&\"|\"&ROW(A3),Input[UNIQUE VALUE (CALCULATED)],0),2),\"\")","v":""},{"$f":"IFERROR(INDEX(Input[],MATCH($H$30&\"|\"&ROW(A3),Input[UNIQUE VALUE (CALCULATED)],0),3),\"\")","v":""}]
[null,"Rehat",null,null,{"$f":"'Sela Masa'!B29","v":"7.00 MLM"},{"$f":"IFERROR(INDEX(Input[],MATCH(DATEVALUE(DateVal)&DailySchedule[[#This Row],[Time]],LookUpDateAndTime,0),3),\"-\")","v":"-"},null,{"$f":"DateVal+5","v":"2016-04-15"},{"$f":"IFERROR(INDEX(Input[],MATCH($H$30&\"|\"&ROW(A4),Input[UNIQUE VALUE (CALCULATED)],0),2),\"\")","v":""},{"$f":"IFERROR(INDEX(Input[],MATCH($H$30&\"|\"&ROW(A4),Input[UNIQUE VALUE (CALCULATED)],0),3),\"\")","v":""}]
[{"$nulls":4},{"$f":"'Sela Masa'!B30","v":"7.30 MLM"},{"$f":"IFERROR(INDEX(Input[],MATCH(DATEVALUE(DateVal)&DailySchedule[[#This Row],[Time]],LookUpDateAndTime,0),3),\"-\")","v":"-"},null,null,{"$f":"IFERROR(INDEX(Input[],MATCH($H$30&\"|\"&ROW(A5),Input[UNIQUE VALUE (CALCULATED)],0),2),\"\")","v":""},{"$f":"IFERROR(INDEX(Input[],MATCH($H$30&\"|\"&ROW(A5),Input[UNIQUE VALUE (CALCULATED)],0),3),\"\")","v":""},null,"c"]
[{"$nulls":4},{"$f":"'Sela Masa'!B31","v":"8.00 MLM"},{"$f":"IFERROR(INDEX(Input[],MATCH(DATEVALUE(DateVal)&DailySchedule[[#This Row],[Time]],LookUpDateAndTime,0),3),\"-\")","v":"-"},null,{"$f":"TEXT(DATEVALUE(DateVal)+6,\"[$-43E]dddd\")","v":"Sabtu"},{"$f":"IFERROR(INDEX(Input[],MATCH($H$35&\"|\"&ROW(A1),Input[UNIQUE VALUE (CALCULATED)],0),2),\"\")","v":""},{"$f":"IFERROR(INDEX(Input[],MATCH($H$35&\"|\"&ROW(A1),Input[UNIQUE VALUE (CALCULATED)],0),3),\"\")","v":""}]
[{"$nulls":4},{"$f":"'Sela Masa'!B32","v":"8.30 MLM"},{"$f":"IFERROR(INDEX(Input[],MATCH(DATEVALUE(DateVal)&DailySchedule[[#This Row],[Time]],LookUpDateAndTime,0),3),\"-\")","v":"-"},null,{"$f":"TEXT(DATEVALUE(DateVal)+6,\"[$-43E]d\")","v":"16"},{"$f":"IFERROR(INDEX(Input[],MATCH($H$35&\"|\"&ROW(A2),Input[UNIQUE VALUE (CALCULATED)],0),2),\"\")","v":""},{"$f":"IFERROR(INDEX(Input[],MATCH($H$35&\"|\"&ROW(A2),Input[UNIQUE VALUE (CALCULATED)],0),3),\"\")","v":""}]
[{"$nulls":4},{"$f":"'Sela Masa'!B33","v":"9.00 MLM"},{"$f":"IFERROR(INDEX(Input[],MATCH(DATEVALUE(DateVal)&DailySchedule[[#This Row],[Time]],LookUpDateAndTime,0),3),\"-\")","v":"-"},null,null,{"$f":"IFERROR(INDEX(Input[],MATCH($H$35&\"|\"&ROW(A3),Input[UNIQUE VALUE (CALCULATED)],0),2),\"\")","v":""},{"$f":"IFERROR(INDEX(Input[],MATCH($H$35&\"|\"&ROW(A3),Input[UNIQUE VALUE (CALCULATED)],0),3),\"\")","v":""},null,"c"]
[{"$nulls":4},{"$f":"'Sela Masa'!B34","v":"9.30 MLM"},{"$f":"IFERROR(INDEX(Input[],MATCH(DATEVALUE(DateVal)&DailySchedule[[#This Row],[Time]],LookUpDateAndTime,0),3),\"-\")","v":"-"},null,{"$f":"DateVal+6","v":"2016-04-16"},{"$f":"IFERROR(INDEX(Input[],MATCH($H$35&\"|\"&ROW(A4),Input[UNIQUE VALUE (CALCULATED)],0),2),\"\")","v":""},{"$f":"IFERROR(INDEX(Input[],MATCH($H$35&\"|\"&ROW(A4),Input[UNIQUE VALUE (CALCULATED)],0),3),\"\")","v":""}]
[{"$nulls":4},{"$f":"'Sela Masa'!B35","v":"10.00 MLM"},{"$f":"IFERROR(INDEX(Input[],MATCH(DATEVALUE(DateVal)&DailySchedule[[#This Row],[Time]],LookUpDateAndTime,0),3),\"-\")","v":"-"},null,null,{"$f":"IFERROR(INDEX(Input[],MATCH($H$35&\"|\"&ROW(A5),Input[UNIQUE VALUE (CALCULATED)],0),2),\"\")","v":""},{"$f":"IFERROR(INDEX(Input[],MATCH($H$35&\"|\"&ROW(A5),Input[UNIQUE VALUE (CALCULATED)],0),3),\"\")","v":""}]

{"sheet":"Penjadual Peristiwa","index":1,"n_rows":17,"n_cols":9,"rows_kept":17,"merged":[[0,1,5,2],[0,4,2,5],[6,1,7,2],[8,1,9,2]]}
[null,{"$f":"DAY(DateVal)","v":10},null,null,"Penjadual Peristiwa"]
[]
[{"$nulls":8}," "]
[{"$nulls":4},"TARIKH","MASA","PERIHALAN","UNIQUE VALUE (CALCULATED)"," "]
[{"$nulls":4},"2016-04-10","6.00 PG","Bangun",{"$f":"Input[[#This Row],[TARIKH]]&\"|\"&COUNTIF($E$5:E5,E5)","v":"42470|1"}]
[{"$nulls":4},"2016-04-10","6.30 PG","Mandi",{"$f":"Input[[#This Row],[TARIKH]]&\"|\"&COUNTIF($E$5:E6,E6)","v":"42470|2"}]
[null,{"$f":"TEXT(DateVal,\"dddd\")","v":"Ahad"},null,null,"2016-04-10","7.00 PG","Bertolak ke tempat kerja",{"$f":"Input[[#This Row],[TARIKH]]&\"|\"&COUNTIF($E$5:E7,E7)","v":"42470|3"}]
[{"$nulls":4},"2016-04-10","8.00 PG","Mulakan syif",{"$f":"Input[[#This Row],[TARIKH]]&\"|\"&COUNTIF($E$5:E8,E8)","v":"42470|4"}]
[null,{"$f":"DateVal","v":"10 APRIL 2016"},null,null,"2016-04-10","10.00 PG","Rehat",{"$f":"Input[[#This Row],[TARIKH]]&\"|\"&COUNTIF($E$5:E9,E9)","v":"42470|5"}]
[{"$nulls":4},"2016-04-10","12.00 TGH","Makan Tengah Hari",{"$f":"Input[[#This Row],[TARIKH]]&\"|\"&COUNTIF($E$5:E10,E10)","v":"42470|6"}]
[{"$nulls":4},"2016-04-10","1.00 PTG","Kembali bekerja",{"$f":"Input[[#This Row],[TARIKH]]&\"|\"&COUNTIF($E$5:E11,E11)","v":"42470|7"}]
[{"$nulls":4},"2016-04-10","1.30 PTG","Panggil korporat",{"$f":"Input[[#This Row],[TARIKH]]&\"|\"&COUNTIF($E$5:E12,E12)","v":"42470|8"}]
[{"$nulls":4},"2016-04-10","3.00 PTG","Rehat",{"$f":"Input[[#This Row],[TARIKH]]&\"|\"&COUNTIF($E$5:E13,E13)","v":"42470|9"}]
[{"$nulls":4},"2016-04-10","5.00 PTG","Rumah",{"$f":"Input[[#This Row],[TARIKH]]&\"|\"&COUNTIF($E$5:E14,E14)","v":"42470|10"}]
[{"$nulls":4},"2016-04-10","6.00 PTG","Latihan bola sepak",{"$f":"Input[[#This Row],[TARIKH]]&\"|\"&COUNTIF($E$5:E15,E15)","v":"42470|11"}]
[{"$nulls":4},"2016-04-11","6.00 PG","Sarapan pagi",{"$f":"Input[[#This Row],[TARIKH]]&\"|\"&COUNTIF($E$5:E17,E16)","v":"42471|2"}]
[{"$nulls":4},"2016-04-11","7.00 PG","Bertolak ke tempat kerja",{"$f":"Input[[#This Row],[TARIKH]]&\"|\"&COUNTIF($E$5:E17,E17)","v":"42471|2"}," "]

{"sheet":"Sela Masa","index":2,"n_rows":35,"n_cols":2,"rows_kept":35}
[]
[null,"MASA"]
[null,"6.00 PG"]
[null,"6.30 PG"]
[null,"7.00 PG"]
[null,"7.30 PG"]
[null,"8.00 PG"]
[null,"8.30 PG"]
[null,"9.00 PG"]
[null,"9.30 PG"]
[null,"10.00 PG"]
[null,"10.30 PG"]
[null,"11.00 PG"]
[null,"11.30 PG"]
[null,"12.00 TGH"]
[null,"12.30 TGH"]
[null,"1.00 PTG"]
[null,"1.30 PTG"]
[null,"2.00 PTG"]
[null,"2.30 PTG"]
[null,"3.00 PTG"]
[null,"3.30 PTG"]
[null,"4.00 PTG"]
[null,"4.30 PTG"]
[null,"5.00 PTG"]
[null,"5.30 PTG"]
[null,"6.00 PTG"]
[null,"6.30 PTG"]
[null,"7.00 MLM"]
[null,"7.30 MLM"]
[null,"8.00 MLM"]
[null,"8.30 MLM"]
[null,"9.00 MLM"]
[null,"9.30 MLM"]
[null,"10.00 MLM"]